bitfinex-derivatives/quotes_ETHF0:USTF0_20241129
["timestamp","ask_amount","ask_price","bid_price","bid_amount"]
[1732900596572,0.27852,3587.4,3587.3,0.27853]
[1732900596769,0.27853,3587.2,3587.1,0.534]
[1732900597075,0.27853,3587.3,3587.2,0.27853]
[1732900597370,0.27856,3586.8,3586.7,4.7768]
[1732900597967,0.27856,3586.8,3586.7,1.569]
[1732900599471,0.27856,3586.8,3586.1,0.5366]
[1732900599472,0.27861,3586.2,3586.1,0.5366]
[1732900599678,0.5438,3586.7,3586.0,4.7768]
[1732900600175,0.27861,3586.3,3586.2,0.27861]
[1732900600373,0.27862,3586.1,3586.0,5.05542]
[1732900600572,0.27862,3586.1,3586.0,3.2078]
[1732900600774,3.2078,3586.5,3585.5,4.52689867]
[1732900601079,0.27867,3585.5,3585.4,0.27867]
[1732900601477,0.5438,3585.9,3585.1,10.46909867]
[1732900601672,0.27867,3585.5,3585.4,0.27867]
[1732900601971,3.2078,3585.7,3585.1,10.46909867]
[1732900602174,0.27867,3585.5,3585.4,0.27867]
[1732900602375,3.2078,3585.7,3585.6,0.27866]
[1732900603070,3.2078,3585.7,3585.5,2.95789867]
[1732900603276,0.27864,3585.8,3585.6,0.27865]
[1732900603472,0.27865,3585.7,3585.5,2.95789867]
[1732900603673,3.2078,3586.1,3585.5,2.95789867]
[1732900603879,0.27865,3585.7,3585.6,0.27866]
[1732900604076,0.27865,3585.7,3585.5,3.23655867]
[1732900604572,3.2078,3586.1,3585.5,2.95789867]
[1732900604775,0.27866,3585.6,3585.5,2.95789867]
[1732900604978,3.2078,3585.7,3585.1,10.46909867]
[1732900605172,3.2078,3585.7,3585.0,1.8477806]
[1732900605377,0.5331,3585.6,3585.2,0.27868]
[1732900605678,3.2078,3585.7,3585.3,0.27868]
[1732900605977,0.27869,3585.3,3585.1,3.23659867]
[1732900606179,0.27868,3585.4,3585.2,0.27869]
[1732900606881,3.2078,3585.7,3585.1,2.95789867]
[1732900607068,0.27867,3585.5,3585.3,0.27868]
[1732900607469,3.2078,3585.7,3585.3,0.27868]
[1732900607673,0.27867,3585.4,3585.3,0.27868]
[1732900607970,3.2078,3585.7,3585.1,2.95789867]
[1732900608175,0.27866,3585.5,3585.4,0.27867]
[1732900608370,0.27866,3585.5,3585.1,2.95789867]
[1732900608584,3.2078,3585.7,3585.1,2.95789867]
[1732900608872,0.27874,3584.5,3584.4,0.27875]
[1732900609081,0.27875,3584.4,3584.3,0.5442]
[1732900609281,0.27875,3584.5,3584.3,0.5442]
[1732900609573,0.27875,3584.5,3584.3,0.82295]
[1732900609780,3.2078,3584.8,3584.3,0.5442]
[1732900609971,0.27874,3584.6,3584.3,0.82295]
[1732900610174,3.2078,3584.8,3584.3,0.5442]
[1732900610573,3.2078,3584.8,3584.4,0.27875]
[1732900610777,0.27874,3584.6,3584.3,0.82295]
[1732900611077,3.2078,3584.8,3584.4,0.27875]
[1732900611283,0.538,3585.0,3584.3,3.50209867]
[1732900611475,1.39324,3585.8,3584.3,3.50209867]
[1732900611476,3.2078,3584.9,3584.8,0.27872]
[1732900611784,0.27869,3585.2,3585.0,0.2787]
[1732900612081,3.2078,3585.4,3585.0,0.2787]
[1732900612277,3.48648,3585.4,3584.8,0.5151]
[1732900612480,0.27869,3585.3,3585.0,0.2787]
[1732900612776,0.27868,3585.3,3585.0,0.2787]
[1732900613673,3.2078,3585.4,3584.8,0.5151]
[1732900613876,3.2078,3585.4,3585.2,0.27868]
[1732900614178,3.2078,3585.4,3585.1,2.95789867]
[1732900614179,3.2078,3585.4,3585.3,0.27868]
[1732900614577,0.27861,3586.2,3585.9,0.27863]
[1732900614779,0.27861,3586.2,3585.8,0.27864]
[1732900614983,3.2078,3586.3,3585.9,0.5604]
[1732900615281,0.27863,3586.0,3585.9,0.5604]
[1732900615684,0.27862,3586.1,3585.9,0.5604]
[1732900615874,3.2078,3586.3,3585.9,0.5604]
[1732900616079,3.2078,3586.3,3585.6,2.95789867]
[1732900616080,0.27863,3585.9,3585.7,0.27864]
[1732900616379,3.2078,3586.3,3585.5,0.5604]
[1732900616586,0.27863,3586.0,3585.8,0.27863]
[1732900617287,3.2078,3586.3,3585.6,2.95789867]
[1732900617481,0.69652,3586.2,3585.5,1.1191]
[1732900617781,0.27868,3585.3,3585.1,0.27869]
[1732900617982,3.2078,3585.8,3584.9,0.5515]
[1732900618182,0.27869,3585.2,3585.0,0.2787]
[1732900618483,0.27868,3585.3,3585.1,0.27869]
[1732900618682,0.5189,3585.7,3584.9,0.5515]
[1732900619480,0.5189,3585.7,3584.9,2.0185]
[1732900619688,0.27861,3586.1,3585.7,0.27864]
[1732900619880,3.2078,3586.2,3586.0,0.27862]
[1732900619881,3.48641,3586.2,3586.0,0.27862]
[1732900620079,3.2078,3586.2,3586.0,0.27862]
[1732900620283,3.48641,3586.2,3586.0,0.27862]
[1732900620479,0.27862,3586.0,3585.8,0.27863]
[1732900620779,3.2078,3586.2,3585.7,0.5515]
[1732900621183,0.27861,3586.1,3585.9,0.27863]
[1732900621379,0.27861,3586.1,3585.8,0.27863]
[1732900621677,1.0685,3586.8,3586.1,0.27861]
[1732900621887,3.48637,3586.7,3586.4,3.23648867]
[1732900622181,3.48637,3586.7,3586.4,2.95789867]
[1732900622182,3.2078,3586.7,3586.4,2.95789867]
[1732900622381,3.2078,3586.7,3586.5,0.27858]
[1732900622682,3.2078,3586.7,3586.4,2.95789867]
[1732900622991,3.2078,3586.7,3586.0,2.95789867]
[1732900623180,3.2078,3586.7,3586.2,0.27861]
[1732900623379,3.2078,3586.7,3586.3,0.27859]
[1732900623587,3.2078,3586.7,3586.0,2.95789867]
[1732900623785,3.2078,3586.7,3586.6,0.27857]
[1732900624086,3.2078,3586.7,3586.5,0.27858]
[1732900624279,3.2078,3586.7,3586.6,0.27857]
[1732900624485,0.69629,3587.5,3587.2,0.27852]
[1732900624486,3.2078,3587.5,3587.2,0.27852]
[1732900624684,3.2078,3587.9,3587.0,1.467]
[1732900624880,0.27851,3587.4,3587.3,2.95789867]
[1732900625082,3.2078,3587.9,3587.0,1.467]
[1732900625378,0.5172,3588.0,3587.0,1.467]
[1732900625379,3.2078,3587.5,3587.0,1.467]
[1732900625577,1.67128,3587.0,3586.1,2.95789867]
[1732900625779,1.67128,3587.0,3585.8,7.25292135]
[1732900625780,3.2078,3586.7,3585.9,2.0118]
[1732900626077,3.2078,3586.7,3586.0,3.2078]
[1732900626279,3.48637,3586.7,3586.5,0.27858]
[1732900626483,0.27856,3586.8,3586.5,0.27858]
[1732900626688,1.0352,3586.9,3586.1,2.95789867]
[1732900626689,0.27857,3586.7,3586.4,0.27858]
[1732900626989,1.0352,3586.9,3586.1,2.95789867]
[1732900627185,0.5172,3586.9,3586.2,1.467]
[1732900627487,3.2078,3587.1,3586.2,1.467]
[1732900627690,0.27859,3586.4,3586.3,0.5481]
[1732900627983,3.2078,3586.6,3586.3,0.5481]
[1732900628188,3.2078,3586.6,3586.5,0.27858]
[1732900628389,0.27858,3586.5,3586.3,0.5481]
[1732900628584,3.2078,3586.6,3586.3,0.82669]
[1732900628888,0.27859,3586.5,3586.4,0.27859]
[1732900629083,3.2078,3586.6,3586.2,1.467]
[1732900629284,3.2078,3586.6,3586.0,1.467]
[1732900629486,0.5536,3586.5,3586.4,0.27859]
[1732900629682,3.2078,3586.6,3586.5,0.27858]
[1732900629888,3.2078,3587.0,3586.9,0.27858]
[1732900630090,3.2078,3587.4,3586.9,2.95789867]
[1732900630279,0.27857,3587.1,3586.5,2.95789867]
[1732900630591,3.2078,3587.4,3587.1,0.27856]
[1732900630784,3.2078,3587.4,3587.0,0.27857]
[1732900631086,0.27855,3587.3,3586.6,0.69651]
[1732900631280,0.27855,3587.3,3586.7,0.5337]
[1732900631483,3.2078,3587.4,3587.3,0.27855]
[1732900631682,3.2078,3587.4,3587.3,3.23644867]
[1732900631984,3.2078,3587.9,3587.3,2.95789867]
[1732900632190,3.2078,3587.9,3587.8,0.27851]
[1732900632388,1.1039,3588.3,3587.7,2.95789867]
[1732900632587,0.27849,3588.1,3587.8,0.2785]
[1732900632990,0.27849,3588.1,3587.6,0.5337]
[1732900633190,1.1039,3588.3,3588.1,0.27848]
[1732900633380,0.0117,3588.4,3588.1,4.42389867]
[1732900633582,0.0117,3588.4,3588.3,0.27847]
[1732900634079,0.0117,3588.4,3588.2,3.7442]
[1732900634287,0.0117,3588.4,3588.2,3.2078]
[1732900634488,0.0117,3588.4,3588.3,0.27847]
[1732900635388,0.00639738,3588.4,3588.3,5.27847]
[1732900635787,3.2078,3589.4,3589.1,0.2784]
[1732900636093,0.5598,3589.6,3588.8,3.65397867]
[1732900636386,3.2078,3589.8,3589.3,0.27839]
[1732900636588,3.2078,3589.8,3589.2,2.95789867]
[1732900636795,3.2078,3589.8,3589.4,0.27838]
[1732900637295,3.48616,3589.8,3589.3,0.27839]
[1732900637492,0.27837,3589.7,3589.2,0.5232]
[1732900637687,3.2078,3589.8,3589.4,0.27838]
[1732900637688,3.48616,3589.8,3589.4,0.27838]
[1732900637996,3.2078,3589.8,3589.6,0.27837]
[1732900638295,3.2078,3589.8,3589.2,0.5232]
[1732900638496,3.2078,3589.8,3589.2,3.48109867]
[1732900638795,3.2078,3589.8,3589.7,0.27836]
[1732900638988,3.2078,3589.8,3589.2,3.48109867]
[1732900639185,3.2078,3589.8,3589.5,0.27837]
[1732900639487,3.2078,3589.8,3589.7,0.27836]
[1732900640385,3.2078,3589.8,3589.2,3.48109867]
[1732900640591,3.2078,3589.8,3589.7,0.27836]
[1732900641191,0.69572,3590.7,3589.7,0.27836]
[1732900641192,2.994,3591.9,3589.7,2.95789867]
[1732900641495,2.994,3591.9,3589.2,0.5232]
[1732900641496,0.27825,3591.1,3590.5,0.27829]
[1732900641697,0.27825,3591.1,3590.4,3.23619867]
[1732900641889,3.2078,3590.8,3590.4,2.95789867]
[1732900642085,3.2078,3591.2,3590.4,2.95789867]
[1732900642291,3.2078,3590.8,3590.7,0.27828]
[1732900642690,3.2078,3590.8,3590.5,0.27829]
[1732900642888,3.2078,3590.8,3590.7,0.27828]
[1732900643091,3.2078,3590.8,3590.4,2.95789867]
[1732900643294,3.2078,3590.8,3590.2,1.466]
[1732900643693,3.2078,3590.8,3590.3,0.27831]
[1732900643901,3.2078,3590.8,3590.7,0.27828]
[1732900644194,3.2078,3591.2,3590.4,2.95789867]
[1732900644394,3.2078,3591.2,3591.0,0.27826]
[1732900644594,3.2078,3591.2,3591.0,0.27825]
[1732900644893,3.2078,3591.2,3591.1,0.27825]
[1732900645394,3.2078,3591.2,3590.8,2.95789867]
[1732900645791,3.2078,3591.2,3591.1,0.27825]
[1732900646092,3.48605,3591.2,3590.9,0.27826]
[1732900646299,3.2078,3591.2,3590.8,2.95789867]
[1732900646594,3.2078,3591.2,3590.4,2.95789867]
[1732900646799,0.27825,3591.1,3590.9,0.27826]
[1732900646989,3.2078,3591.2,3590.8,2.95789867]
[1732900647303,1.1092,3591.4,3591.3,0.27824]
[1732900647493,1.1092,3591.4,3591.3,3.23613867]
[1732900648393,0.02118,3591.6,3591.5,0.27822]
[1732900649294,0.02118,3591.6,3591.5,5.27822]
[1732900649495,0.02118,3591.6,3591.5,5.84532]
[1732900649703,3.2078,3592.5,3591.5,5.7571]
[1732900650002,0.27814,3592.5,3592.4,2.95789867]
[1732900650201,1.0479,3592.7,3592.4,2.95789867]
[1732900650494,0.27814,3592.6,3592.4,2.95789867]
[1732900650997,1.32603,3592.7,3592.4,3.23604867]
[1732900651194,0.5246,3592.7,3592.4,2.95789867]
[1732900651400,3.2078,3592.9,3592.8,0.27812]
[1732900651694,0.27813,3592.8,3592.5,0.27814]
[1732900651899,3.2078,3592.9,3592.4,2.95789867]
[1732900652400,3.2078,3592.5,3592.4,2.95789867]
[1732900652899,3.2078,3592.5,3592.2,1.41]
[1732900653095,0.2782,3592.1,3591.8,0.5385]
[1732900653304,3.2078,3592.1,3591.0,0.5458]
[1732900653494,0.27828,3591.2,3590.8,0.2783]
[1732900653692,3.2078,3590.9,3590.7,4.36689867]
[1732900653900,3.2078,3591.6,3591.5,0.27825]
[1732900654398,3.2078,3591.6,3590.7,4.36689867]
[1732900654596,3.2078,3591.1,3590.7,4.36689867]
[1732900654999,3.2078,3591.0,3590.7,4.36689867]
[1732900655199,3.2078,3591.0,3590.4,1.474]
[1732900655403,0.2784,3589.9,3589.6,2.95789867]
[1732900655596,3.2078,3589.7,3589.6,0.27842]
[1732900656601,3.2078,3589.9,3589.3,0.69612]
[1732900656808,3.2078,3589.9,3589.2,3.48959867]
[1732900656809,3.2078,3589.9,3589.4,1.474]
[1732900657097,3.2078,3589.8,3589.4,2.1701]
[1732900657307,3.2078,3589.9,3589.7,0.27842]
[1732900657496,3.2078,3589.9,3589.5,0.27843]
[1732900657898,3.2078,3589.9,3589.4,1.474]
[1732900658098,3.2078,3589.5,3589.4,1.75244]
[1732900658295,3.2078,3589.5,3589.4,1.75344]
[1732900659203,3.2078,3590.1,3589.4,1.475]
[1732900659404,3.2078,3590.1,3589.8,0.27841]
[1732900659698,3.2078,3590.1,3589.6,2.95789867]
[1732900659898,3.2078,3590.1,3589.8,0.2784]
[1732900660103,3.2078,3590.1,3589.7,1.475]
[1732900660498,3.2078,3590.1,3589.8,0.27841]
[1732900660696,3.2078,3590.1,3589.7,1.475]
[1732900661694,3.2078,3590.1,3589.8,0.27841]
[1732900661898,3.2078,3590.1,3589.8,0.2784]
[1732900662100,3.2078,3590.1,3589.7,1.475]
[1732900662101,3.2078,3590.1,3590.0,0.27839]
[1732900662300,3.2078,3590.1,3590.0,0.14673738]
[1732900662509,3.2078,3590.1,3589.7,1.475]
[1732900662711,3.2078,3590.1,3590.0,0.27839]
[1732900663513,3.2078,3590.5,3590.4,0.27836]
[1732900663710,3.2078,3590.5,3589.7,2.0314]
[1732900663911,3.2078,3590.1,3589.7,2.0314]
[1732900664112,3.2078,3590.1,3589.5,1.71075008]
[1732900664308,3.2078,3589.6,3589.5,1.98918008]
[1732900664616,0.542,3590.0,3589.9,0.2784]
[1732900664815,0.542,3590.0,3589.5,1.71075008]
[1732900665006,0.542,3590.0,3589.0,0.97462535]
[1732900665007,3.2078,3589.7,3589.0,0.27845535]
[1732900665210,3.2078,3589.2,3589.1,0.27846]
[1732900665516,3.48623,3589.6,3589.1,0.27846]
[1732900665911,3.2078,3589.2,3588.9,1.475]
[1732900666210,3.2078,3589.2,3589.1,0.27846]
[1732900666416,3.2078,3589.2,3588.9,1.475]
[1732900666710,3.2078,3589.2,3588.4,3.2078]
[1732900666908,3.2078,3589.2,3587.8,0.5185]
[1732900666909,3.2078,3588.8,3587.8,0.5185]
[1732900667110,3.2078,3588.3,3588.2,0.27853]
[1732900667513,3.2078,3588.8,3587.9,0.6964]
[1732900667709,3.2078,3588.8,3588.6,0.2785]
[1732900668216,3.2078,3588.8,3587.9,0.6964]
[1732900668409,3.2078,3588.8,3588.7,0.27849]
[1732900668611,3.2078,3589.2,3588.4,2.95789867]
[1732900668910,3.2078,3589.7,3589.4,0.27844]
[1732900669113,3.2078,3589.7,3589.0,1.475]
[1732900669308,0.27842,3589.6,3589.2,0.27845]
[1732900669506,3.2078,3589.7,3589.2,0.27845]
[1732900669715,3.2078,3589.7,3589.0,1.475]
[1732900669906,0.27843,3589.6,3588.8,0.69622]
[1732900670114,0.27843,3589.6,3589.4,0.27844]
[1732900670420,3.2078,3589.7,3589.2,0.27845]
[1732900670609,0.5536,3590.0,3589.2,0.27845]
[1732900670610,3.2078,3589.3,3589.2,0.27845]
[1732900672110,3.2078,3589.8,3589.1,3.2078]
[1732900672315,3.2078,3589.8,3589.7,0.27842]
[1732900673018,3.2078,3590.3,3590.2,0.27838]
[1732900674419,3.2078,3591.0,3590.2,0.27838]
[1732900674618,3.2078,3591.0,3590.0,3.49189867]
[1732900674815,3.2078,3591.0,3590.8,0.27833]
[1732900675018,3.2078,3591.0,3590.7,0.27834]
[1732900675519,8.2078,3591.0,3590.1,0.27838]
[1732900675725,3.2078,3590.5,3590.2,0.27837]
[1732900676020,3.2078,3590.5,3590.4,0.27836]
[1732900676523,3.2078,3590.5,3589.9,1.475]
[1732900676724,3.2078,3590.5,3590.4,0.27836]
[1732900677521,3.2078,3590.5,3589.9,1.475]
[1732900677712,3.2078,3590.5,3589.6,0.23734647]
[1732900678023,0.27837,3590.3,3590.0,0.27839]
[1732900678222,0.27837,3590.3,3589.7,1.475]
[1732900678438,0.5213,3590.4,3590.2,0.27837]
[1732900678738,0.5213,3590.4,3589.7,1.475]
[1732900678927,3.2078,3590.5,3590.4,0.27836]
[1732900679129,3.2078,3591.0,3590.7,0.27834]
[1732900679331,3.2078,3591.0,3590.0,0.69599]
[1732900679637,0.27833,3590.9,3590.6,0.27834]
[1732900679825,3.2078,3591.0,3590.6,0.27834]
[1732900680031,3.2078,3591.0,3590.1,0.69597]
[1732900680032,0.27833,3590.9,3590.7,0.27834]
[1732900680227,0.27833,3590.8,3590.7,0.27834]
[1732900680534,3.2078,3591.0,3590.9,0.27832]
[1732900680732,0.27833,3590.9,3589.9,3.2078]
[1732900680934,3.48618,3590.2,3590.0,0.27839]
[1732900681137,3.48618,3590.2,3589.1,3.2078]
[1732900681138,3.90376,3590.2,3589.1,1.1163]
[1732900681343,3.2078,3589.2,3589.0,1.475]
[1732900681634,3.2078,3589.2,3589.1,0.27846]
[1732900682230,4.8293,3590.1,3589.3,0.69612]
[1732900682429,3.2078,3590.0,3589.3,0.69612]
[1732900682637,0.27841,3589.8,3589.6,0.27842]
[1732900682839,3.2078,3589.7,3589.6,0.27842]
[1732900683136,3.2078,3589.7,3588.6,1.1272]
[1732900683343,3.2078,3589.7,3588.2,6.4987371]
[1732900683344,3.2078,3588.9,3588.8,0.27848]
[1732900683641,3.2078,3589.3,3589.2,0.27846]
[1732900683832,0.27846,3589.2,3588.9,0.27848]
[1732900684443,0.27846,3589.2,3588.9,0.27847]
[1732900684636,3.2078,3589.3,3588.5,1.512]
[1732900684952,3.2078,3589.3,3589.1,0.27846]
[1732900685443,3.48625,3589.3,3589.1,0.27846]
[1732900685643,3.2078,3589.3,3588.7,1.512]
[1732900685840,3.2078,3589.2,3588.7,1.79049]
[1732900686043,0.27847,3589.1,3588.8,0.27848]
[1732900686444,0.27849,3588.8,3588.7,1.512]
[1732900686648,0.27851,3588.5,3588.2,0.27853]
[1732900686950,0.2785,3588.6,3588.3,0.27852]
[1732900687146,0.2785,3588.6,3588.0,0.5668]
[1732900687338,3.2078,3588.8,3588.0,0.5668]
[1732900687540,0.2785,3588.6,3588.3,0.27852]
[1732900687744,3.2078,3588.8,3588.0,0.5668]
[1732900688039,0.27849,3588.7,3588.3,0.27852]
[1732900688244,3.2078,3588.4,3587.0,3.2078]
[1732900688444,3.2078,3587.8,3587.0,0.5663]
[1732900688645,3.2078,3587.2,3587.1,0.27862]
[1732900688942,3.2078,3588.0,3587.0,0.5663]
[1732900689146,3.2078,3588.0,3587.6,0.27857]
[1732900689444,3.2078,3588.0,3587.7,0.27857]
[1732900689639,3.48636,3588.0,3587.0,2.0783]
[1732900689846,3.48634,3588.1,3587.6,0.27857]
[1732900690041,0.27855,3588.0,3587.6,0.27857]
[1732900690247,3.2078,3588.1,3587.7,0.27857]
[1732900690545,3.48634,3588.1,3587.7,0.27857]
[1732900690744,0.27855,3588.0,3587.5,0.27858]
[1732900690944,3.48634,3588.1,3587.7,0.27857]
[1732900691146,3.2078,3588.1,3587.8,0.27856]
[1732900691344,3.2078,3588.1,3587.0,5.2861]
[1732900691548,3.2078,3588.8,3588.7,0.27849]
[1732900692050,3.2078,3588.8,3588.2,1.1002]
[1732900692244,3.2078,3588.8,3588.4,0.27851]
[1732900692552,3.2078,3588.8,3588.6,0.2785]
[1732900692747,3.2078,3588.8,3588.2,1.1002]
[1732900692748,3.2078,3588.8,3588.7,0.27849]
[1732900693347,3.2078,3588.8,3588.2,1.1002]
[1732900693549,3.2078,3588.8,3588.7,0.27849]
[1732900693745,3.2078,3588.8,3588.2,1.1002]
[1732900693948,3.2078,3588.8,3588.4,0.27851]
[1732900694253,3.2078,3588.8,3588.2,1.1002]
[1732900694254,3.2078,3588.8,3588.7,0.27849]
[1732900694454,3.2078,3588.8,3588.2,1.1002]
[1732900694756,3.2078,3588.8,3588.7,0.27849]
[1732900694948,3.2078,3588.8,3588.6,0.2785]
[1732900695448,3.2078,3588.8,3588.5,0.27851]
[1732900695650,3.2078,3588.8,3588.7,0.27849]
[1732900695848,0.27846,3589.1,3588.3,0.27853]
[1732900696146,0.27848,3588.9,3588.2,4.05208846]
[1732900696351,0.27852,3588.5,3588.2,1.1002]
[1732900696549,0.27853,3588.3,3588.0,1.79155]
[1732900696742,3.2078,3588.4,3588.0,1.513]
[1732900697055,0.27856,3587.9,3587.5,0.27858]
[1732900697350,0.27857,3587.8,3587.4,3.23047846]
[1732900697552,3.2078,3588.0,3587.4,2.95188846]
[1732900697745,3.2078,3588.0,3587.9,0.27856]
[1732900697950,0.5631,3588.3,3587.8,2.95188846]
[1732900698342,0.5631,3588.3,3588.1,0.27853]
[1732900698545,3.2078,3588.2,3587.8,4.46488846]
[1732900698950,3.7492,3588.8,3588.7,0.27849]
[1732900699151,0.5414,3588.8,3588.2,2.95188846]
[1732900699344,3.2078,3588.7,3588.5,0.2785]
[1732900699548,0.5414,3588.8,3588.2,2.95188846]
[1732900699744,0.81989,3588.8,3588.4,0.27851]
[1732900699947,3.2078,3588.7,3588.2,2.95188846]
[1732900700152,3.2078,3588.7,3588.4,0.27851]
[1732900700352,3.2078,3588.7,3588.5,0.27851]
[1732900700549,3.2078,3588.7,3588.2,0.27853]
[1732900700751,0.2785,3588.6,3588.3,0.27852]
[1732900700953,0.2785,3588.6,3588.0,0.5645]
[1732900701154,0.2785,3588.6,3588.2,0.27853]
[1732900701354,3.2078,3588.7,3588.0,0.5645]
[1732900701553,3.2078,3588.3,3587.9,2.0475]
[1732900701754,3.48633,3588.3,3588.0,0.27855]
[1732900702052,0.27854,3588.2,3587.8,1.79156]
[1732900702250,3.2078,3588.3,3587.8,1.513]
[1732900702448,3.2078,3588.3,3587.4,3.64836846]
[1732900702652,3.2078,3588.3,3587.3,1.8324]
[1732900702653,3.2078,3588.3,3588.2,0.27853]
[1732900702849,3.2078,3588.3,3587.8,2.95188846]
[1732900703049,3.2078,3588.3,3588.0,0.27854]
[1732900703256,3.2078,3588.3,3588.2,0.27853]
[1732900703456,0.5218,3588.6,3588.4,0.27852]
[1732900703956,0.80031,3588.6,3588.3,0.27852]
[1732900704158,0.5218,3588.6,3587.5,0.2277875]
[1732900704349,0.5218,3588.6,3587.8,0.27856]
[1732900704350,3.2078,3588.2,3587.8,0.27856]
[1732900704549,3.48634,3588.2,3587.8,0.27856]
[1732900704758,0.27854,3588.1,3587.8,0.27856]
[1732900704954,3.2078,3588.2,3587.5,1.513]
[1732900705159,3.48633,3588.2,3587.9,0.27855]
[1732900706059,3.2078,3588.2,3588.0,0.27855]
[1732900706357,3.2078,3588.2,3587.5,1.513]
[1732900706556,3.2078,3587.8,3587.5,1.513]
[1732900706754,3.2078,3587.8,3587.2,3.2078]
[1732900706961,0.27862,3587.2,3586.8,0.27864]
[1732900707257,3.2078,3587.3,3586.6,1.513]
[1732900707454,3.2078,3587.3,3587.2,0.27861]
[1732900707657,3.2078,3587.3,3586.6,5.16152846]
[1732900707658,4.2641,3587.7,3586.8,0.69659]
[1732900707956,4.2641,3587.7,3586.9,1.513]
[1732900708456,4.2641,3587.7,3587.1,0.27861]
[1732900708753,0.2786,3587.4,3587.1,0.27862]
[1732900708966,4.2641,3587.7,3587.0,2.95188846]
[1732900709151,3.7392,3587.7,3587.5,0.27858]
[1732900709350,4.01778,3587.7,3587.4,0.27859]
[1732900709551,4.01778,3587.7,3587.0,2.95188846]
[1732900709552,3.7392,3587.7,3587.0,2.95188846]
[1732900709952,3.2078,3587.3,3587.0,0.27862]
[1732900710157,3.2078,3587.3,3586.9,1.513]
[1732900710453,0.84598,3587.6,3586.8,1.513]
[1732900710454,0.5674,3587.6,3586.8,1.513]
[1732900710666,0.2786,3587.4,3587.1,0.27861]
[1732900710852,0.27859,3587.5,3587.2,0.27861]
[1732900711048,0.5674,3587.6,3587.4,0.27859]
[1732900711254,3.7392,3587.7,3587.4,0.27859]
[1732900711457,3.7392,3587.7,3587.0,2.95188846]
[1732900711661,0.5314,3587.7,3587.6,0.27858]
[1732900711851,0.5314,3587.7,3587.0,2.95188846]
[1732900712054,0.5314,3587.7,3587.5,0.27858]
[1732900712355,0.80997,3587.7,3587.4,0.27859]
[1732900712555,0.5314,3587.7,3587.5,0.27859]
[1732900712756,0.5314,3587.7,3587.0,2.95188846]
[1732900713157,0.80998,3587.7,3587.0,2.95188846]
[1732900713357,0.5314,3587.7,3587.0,2.95188846]
[1732900713558,0.5314,3587.7,3587.4,0.27859]
[1732900713559,0.80998,3587.7,3587.4,0.27859]
[1732900713865,0.5314,3587.7,3587.6,0.27858]
[1732900714065,3.2078,3588.1,3587.4,2.95188846]
[1732900714261,0.69622,3588.8,3587.0,8.44468655]
[1732900714262,3.2078,3588.6,3587.8,2.95188846]
[1732900714461,3.2078,3588.6,3588.5,0.27851]
[1732900714666,0.5297,3589.0,3587.9,4.7138]
[1732900714869,3.2078,3588.4,3587.9,1.506]
[1732900715068,3.2078,3588.0,3587.2,0.23886779]
[1732900715271,0.27858,3587.6,3587.3,0.2786]
[1732900715468,0.5506,3587.9,3587.1,4.7138]
[1732900715664,0.5506,3587.9,3587.1,0.27862]
[1732900715665,0.2786,3587.4,3587.1,0.27862]
[1732900715864,0.27861,3587.3,3587.0,0.27862]
[1732900716064,3.2078,3587.5,3586.9,1.506]
[1732900716466,3.2078,3587.3,3586.9,2.43776501]
[1732900716667,3.2078,3587.4,3586.9,2.43776501]
[1732900716972,0.27859,3587.6,3587.3,0.2786]
[1732900717168,3.4864,3587.4,3586.9,1.506]
[1732900717366,3.4864,3587.4,3587.1,0.27861]
[1732900717673,3.2078,3587.4,3587.2,0.27861]
[1732900717867,0.27861,3587.3,3587.0,0.27862]
[1732900718168,3.2078,3587.4,3586.9,1.506]
[1732900718372,3.2078,3587.4,3587.3,0.2786]
[1732900718572,3.4864,3587.4,3587.1,0.27861]
[1732900718775,3.2078,3587.4,3586.9,1.506]
[1732900719068,3.2078,3587.4,3586.2,2.95188846]
[1732900719267,3.48646,3586.6,3586.3,0.27868]
[1732900719463,3.48646,3586.6,3586.4,0.27867]
[1732900719464,3.2078,3586.6,3586.4,0.27867]
[1732900719667,0.5142,3587.0,3586.2,3.23065662]
[1732900719868,0.5142,3587.0,3586.5,0.27866]
[1732900719869,3.2078,3586.6,3586.5,0.27866]
[1732900720176,3.2078,3586.7,3586.2,3.23065662]
[1732900720368,0.27864,3586.8,3586.5,0.27866]
[1732900721071,3.48644,3586.8,3586.5,0.27866]
[1732900721865,3.2078,3586.8,3586.2,3.23065662]
[1732900722066,0.27865,3586.8,3586.5,0.27866]
[1732900722276,3.48645,3586.8,3586.5,0.27866]
[1732900722667,0.27865,3586.8,3586.5,0.27866]
[1732900722981,0.5142,3587.0,3586.3,0.69671]
[1732900723271,0.5142,3587.0,3586.9,0.27863]
[1732900724367,4.01921,3587.3,3586.9,0.27863]
[1732900724575,3.7406,3587.3,3586.6,2.95188846]
[1732900724871,3.2078,3587.3,3587.1,0.27862]
[1732900725283,3.2078,3587.3,3586.6,2.95188846]
[1732900725284,3.2078,3587.3,3587.2,0.27861]
[1732900725571,0.5482,3587.5,3587.3,0.2786]
[1732900725970,3.2078,3587.4,3586.7,0.5268]
[1732900726175,3.2078,3587.4,3586.6,3.18217607]
[1732900726573,0.2786,3587.3,3587.0,0.27862]
[1732900726771,3.2078,3587.4,3586.6,3.18217607]
[1732900727269,0.2786,3587.3,3586.7,0.27865]
[1732900727469,3.2078,3587.4,3586.3,3.2078]
[1732900727771,3.2078,3587.4,3586.6,2.95188846]